bitfinex/quotes_ETHUSD_20250731
["timestamp","ask_amount","ask_price","bid_price","bid_amount"]
[1754005109005,0.24961212,3698.5,3698.3,0.4764]
[1754005109209,0.1352,3699.5,3698.5,0.1352]
[1754005109421,0.1352,3699.5,3698.4,6.77099142]
[1754005109422,0.1352,3699.1,3698.6,4.451]
[1754005109759,0.24972971,3699.0,3698.7,4.9274]
[1754005109920,0.24972971,3698.9,3698.8,0.4764]
[1754005110255,0.1352,3699.2,3698.8,0.4764]
[1754005110458,0.1352,3699.2,3698.9,0.4764]
[1754005110755,0.2496946,3699.1,3699.0,0.4764]
[1754005110970,0.2496946,3699.1,3699.0,4.9254]
[1754005111158,0.2496946,3699.1,3699.0,4.448]
[1754005111536,0.2496946,3699.1,3699.0,4.9244]
[1754005111864,0.1352,3699.3,3699.0,11.70898886]
[1754005112038,0.4604,3701.1,3699.1,0.75069561]
[1754005112225,0.1352,3700.4,3699.7,6.51029142]
[1754005112421,0.24990628,3700.3,3699.9,0.1352]
[1754005112616,0.24990628,3700.2,3700.0,0.4764]
[1754005112927,0.24990628,3700.1,3699.9,0.01357881]
[1754005113134,0.24990628,3700.0,3699.8,4.46257881]
[1754005113358,0.24990628,3699.9,3699.8,4.449]
[1754005113558,0.24990628,3699.9,3699.8,4.5842]
[1754005113936,0.25052628,3699.9,3699.8,5.0606]
[1754005114970,0.25052628,3699.9,3699.8,0.6116]
[1754005115169,0.25052628,3699.9,3699.8,5.0596]
[1754005115391,0.25052628,3699.9,3699.8,0.6116]
[1754005115699,0.25052628,3699.9,3699.8,5.0596]
[1754005116471,0.25052628,3699.9,3699.8,0.6116]
[1754005116965,0.25052628,3699.9,3699.8,4.447]
[1754005117284,0.25052628,3699.9,3699.7,0.1352]
[1754005117474,0.25070354,3699.8,3699.7,0.1352]
[1754005117674,0.25070354,3699.8,3699.7,4.5822]
[1754005117869,0.25070354,3699.8,3699.7,0.1352]
[1754005118092,0.25070354,3699.8,3699.7,5.0586]
[1754005118462,0.25070354,3700.1,3699.7,0.6116]
[1754005118664,0.25070354,3700.0,3699.8,0.4764]
[1754005118980,0.25070354,3699.9,3699.7,0.1352]
[1754005119177,0.25070354,3699.8,3699.7,0.1352]
[1754005119377,0.25070354,3700.1,3699.7,7.12189142]
[1754005119682,0.4604,3700.8,3699.8,0.4764]
[1754005119683,0.25070354,3700.0,3699.8,0.4764]
[1754005119884,0.25070354,3699.9,3699.7,6.51029142]
[1754005120081,0.4604,3700.8,3699.9,0.1352]
[1754005120259,0.5017,3700.9,3700.5,0.1352]
[1754005120260,0.25069897,3700.7,3700.5,0.1352]
[1754005120594,0.25069897,3700.6,3700.5,0.1352]
[1754005120777,1.32799897,3700.6,3700.5,4.447]
[1754005120980,1.32799897,3700.6,3700.0,0.1352]
[1754005121293,0.1352,3700.3,3700.1,4.447]
[1754005121488,0.25069897,3700.2,3700.1,4.447]
[1754005121791,1.19279897,3700.2,3700.1,4.447]
[1754005121964,1.19279897,3700.2,3699.7,0.1352]
[1754005122164,0.25069984,3700.1,3699.7,0.6116]
[1754005122373,0.25069675,3700.0,3699.8,4.447]
[1754005122580,0.25069675,3699.9,3699.8,10.95729142]
[1754005122813,0.25069675,3700.6,3699.8,11.35319142]
[1754005123112,0.25069675,3700.5,3699.9,0.4764]
[1754005123310,0.02,3700.9,3699.9,0.4764]
[1754005123487,0.02,3700.9,3700.3,0.1352]
[1754005123688,0.02,3700.9,3700.4,4.446]
[1754005123890,0.02,3700.9,3700.5,0.4764]
[1754005124416,0.02,3700.9,3700.6,0.4764]
[1754005124810,0.02,3700.9,3700.7,4.446]
[1754005125112,0.02,3700.9,3700.8,4.446]
[1754005125476,0.02,3700.9,3700.8,4.93596456]
[1754005125808,0.02,3700.9,3700.8,5.0576]
[1754005126211,0.02,3700.9,3700.8,0.6116]
[1754005126414,0.02,3700.9,3700.8,5.0576]
[1754005126874,0.02,3700.9,3700.8,5.3183]
[1754005129916,0.50018176,3701.7,3700.9,0.55]
[1754005130121,0.1552,3701.9,3701.6,6.51029142]
[1754005130343,0.25008427,3701.8,3701.7,4.445]
[1754005130648,0.25000949,3701.8,3701.7,5.08604814]
[1754005131143,0.02,3701.9,3701.7,5.08604814]
[1754005131359,0.02,3701.9,3701.8,0.4923]
[1754005131840,0.02,3701.9,3701.8,4.444]
[1754005132044,0.02,3701.9,3701.8,5.0715]
[1754005132219,0.02,3701.9,3701.8,4.5792]
[1754005132414,0.51993864,3701.9,3701.8,0.1352]
[1754005132640,0.51993864,3701.9,3701.8,4.5792]
[1754005133571,0.51993864,3701.9,3701.8,11.08949142]
[1754005133706,0.26992915,3701.9,3701.8,11.08949142]
[1754005133902,0.02,3701.9,3701.8,11.08949142]
[1754005134145,0.02,3701.9,3701.8,4.5792]
[1754005134451,0.02,3701.9,3701.8,11.82439142]
[1754005135058,0.02,3702.9,3701.9,0.55]
[1754005135259,0.02,3702.9,3701.9,1.0242]
[1754005135559,0.02,3702.9,3702.8,0.1352]
[1754005135729,0.02,3702.9,3702.8,4.5782]
[1754005135929,1.4223793,3702.9,3702.8,0.1352]
[1754005136159,1.4223793,3702.9,3702.8,4.5782]
[1754005136328,1.17258954,3702.9,3702.8,4.443]
[1754005136761,1.17258954,3702.9,3700.5,3.0]
[1754005137068,0.1352,3702.7,3702.0,0.1352]
[1754005137285,0.9028,3702.6,3702.1,4.443]
[1754005137481,0.9028,3702.5,3702.1,4.443]
[1754005138184,0.9028,3702.4,3702.1,4.443]
[1754005138343,0.9028,3702.4,3702.2,4.442]
[1754005139278,0.9028,3702.3,3702.0,0.1352]
[1754005139477,0.9028,3702.2,3702.0,0.1352]
[1754005139695,0.9028,3702.1,3700.5,6.51029142]
[1754005139873,0.9028,3702.0,3700.1,0.02]
[1754005140055,0.9028,3702.0,3700.6,0.1352]
[1754005140258,0.4654,3701.9,3701.4,0.1352]
[1754005140566,0.4654,3701.9,3700.2,0.55]
[1754005140567,0.1352,3702.7,3701.8,0.1352]
[1754005140885,0.02,3702.9,3702.5,6.51029142]
[1754005141091,0.02,3702.9,3702.8,0.1352]
[1754005141264,0.02,3702.9,3702.8,0.14872808]
[1754005141588,0.02,3702.9,3702.8,4.5772]
[1754005141790,0.02,3702.9,3702.8,0.1352]
[1754005141990,0.02,3702.9,3702.8,4.5772]
[1754005142291,0.02,3702.9,3702.8,0.12053593]
[1754005142471,0.02,3702.9,3702.8,4.442]
[1754005142679,0.02,3702.9,3702.8,4.5772]
[1754005142994,0.02,3702.9,3702.8,4.59072808]
[1754005143351,0.02,3702.9,3702.8,0.1352]
[1754005143549,0.02,3702.9,3702.8,4.59072808]
[1754005144087,0.02,3703.9,3702.9,0.55]
[1754005144301,0.02,3703.9,3703.7,6.51029142]
[1754005144503,0.02,3703.9,3703.8,4.58971058]
[1754005145060,0.02,3703.9,3703.8,0.1352]
[1754005145467,0.02,3703.9,3703.8,4.5762]
[1754005146612,0.02,3703.9,3703.8,0.1352]
[1754005146811,0.02,3703.9,3703.8,4.5762]
[1754005147569,0.02,3703.9,3703.8,0.1352]
[1754005147801,0.02,3703.9,3703.8,4.5752]
[1754005148001,0.9228,3703.9,3703.8,4.5752]
[1754005148396,0.9228,3703.9,3703.8,0.1352]
[1754005148612,0.9228,3703.9,3703.8,4.5752]
[1754005148818,0.02,3703.9,3703.8,4.5752]
[1754005149023,0.02,3703.9,3703.8,0.1352]
[1754005149236,0.02,3703.9,3703.8,4.5752]
[1754005149389,0.02,3703.9,3703.8,0.1352]
[1754005149590,0.02,3703.9,3703.8,4.5752]
[1754005150008,0.02,3703.9,3703.8,0.1352]
[1754005150298,0.02,3703.9,3703.8,4.5742]
[1754005151087,0.02,3703.9,3703.8,4.58770985]
[1754005152025,0.02,3703.9,3703.8,4.5742]
[1754005152822,0.02,3703.9,3703.8,13.35798754]
[1754005153592,1.038,3704.8,3703.8,13.90798754]
[1754005153904,0.9028,3704.8,3704.4,8.78378754]
[1754005154100,0.4654,3704.7,3703.8,0.1352]
[1754005154325,0.9028,3704.7,3703.9,4.438]
[1754005154621,0.1352,3704.5,3704.0,0.1352]
[1754005154919,0.9028,3704.4,3704.0,0.1352]
[1754005155120,0.1352,3704.5,3704.0,0.1352]
[1754005155418,0.9028,3704.3,3704.1,4.438]
[1754005155622,1.038,3704.2,3702.3,6.49]
[1754005155824,0.1352,3703.7,3703.2,0.1352]
[1754005156024,0.1352,3703.7,3703.3,4.437]
[1754005156324,0.9028,3703.6,3703.3,4.437]
[1754005156485,0.9258,3704.0,3703.4,8.78378754]
[1754005156688,0.02,3704.9,3703.9,8.78378754]
[1754005156888,0.9258,3704.8,3704.0,4.437]
[1754005157192,0.1352,3704.6,3704.1,0.1352]
[1754005157407,0.9258,3704.5,3704.1,0.1352]
[1754005157698,0.9258,3704.4,3704.1,0.1352]
[1754005158014,0.9258,3704.3,3704.2,4.437]
[1754005158641,0.4917,3704.3,3704.2,4.437]
[1754005159147,0.9258,3704.7,3704.2,4.437]
[1754005159309,0.1352,3704.7,3704.2,4.5722]
[1754005159647,0.9258,3704.6,3704.2,4.5722]
[1754005159881,0.1352,3704.7,3704.2,4.5722]
[1754005160001,0.9258,3704.5,3704.2,4.5722]
[1754005161297,0.02,3704.9,3704.3,0.01350074]
[1754005161524,0.02,3704.9,3704.4,0.1352]
[1754005161736,0.02,3704.9,3704.8,6.6282031]
[1754005161938,0.02,3704.9,3704.8,11.0642031]
[1754005164840,0.02,3704.9,3704.8,11.05022379]
[1754005165002,0.02,3704.9,3704.8,11.52442379]
[1754005165397,0.02,3704.9,3704.8,12.07442379]
[1754005165905,0.02,3704.9,3704.8,12.33512379]
[1754005166117,0.02,3704.9,3704.8,12.07442379]
[1754005166936,0.02,3704.9,3704.8,12.07242379]
[1754005168226,0.02,3704.9,3704.8,7.89912379]
[1754005168536,0.02,3704.9,3704.8,12.33312379]
[1754005169437,0.02,3704.9,3704.8,12.07242379]
[1754005169733,0.02,3704.9,3704.8,12.07142379]
[1754005170434,0.02,3704.9,3704.8,12.33212379]
[1754005170621,0.02,3705.9,3704.9,0.55]
[1754005170800,0.02,3705.9,3705.4,6.4930031]
[1754005171002,0.02,3705.9,3705.8,0.1352]
[1754005171206,0.02,3705.9,3705.8,4.5672]
[1754005171627,0.9458,3705.9,3705.8,4.5672]
[1754005171948,1.33044301,3705.9,3705.4,0.1352]
[1754005172246,1.20897391,3705.8,3705.5,4.432]
[1754005172544,1.17524301,3705.7,3705.5,4.432]
[1754005172749,1.17524301,3705.6,3705.5,4.432]
[1754005172923,1.17552627,3705.6,3705.5,4.432]
[1754005174144,0.9258,3705.6,3705.5,4.432]
[1754005174333,1.17573706,3705.6,3705.5,4.432]
[1754005175636,0.24993706,3705.6,3705.5,4.432]
[1754005175976,0.24993706,3705.8,3705.5,4.432]
[1754005176160,0.24993706,3705.7,3705.5,4.432]
[1754005176471,0.02,3705.9,3705.6,0.01347779]
[1754005176676,0.02,3705.9,3705.7,0.01347524]
[1754005176978,0.02,3705.9,3705.8,4.431]
[1754005177776,0.02,3705.9,3705.7,8.77508674]
[1754005177981,0.02,3705.9,3705.8,4.43]
[1754005178567,0.02,3705.9,3705.8,4.41602069]
[1754005178997,0.02,3705.9,3705.8,4.43]
[1754005179379,0.9458,3705.9,3703.9,0.4742]
[1754005179579,0.9258,3705.8,3704.8,3.0]
[1754005179891,1.17597911,3705.7,3704.9,4.429]
[1754005180066,1.17597911,3705.6,3704.9,4.429]
[1754005180396,0.9258,3705.5,3704.9,4.429]
[1754005180690,0.4917,3705.4,3704.9,4.429]
[1754005180856,0.9258,3705.3,3704.9,4.429]
[1754005181051,0.9258,3705.2,3704.4,0.55]
[1754005181284,0.9258,3705.2,3704.5,4.429]
[1754005182520,0.4917,3705.2,3704.5,4.429]
[1754005182789,0.4341,3705.5,3704.8,6.4907874]
[1754005182962,0.4917,3705.4,3704.9,4.428]
[1754005183167,0.9258,3705.3,3704.9,4.428]
[1754005183489,0.9258,3705.2,3705.0,4.428]
[1754005183650,0.9258,3705.1,3705.0,4.428]
[1754005184212,0.9258,3705.1,3703.4,0.2607]
[1754005184513,0.9258,3705.0,3703.5,4.4292]
[1754005184652,0.9258,3705.0,3703.7,0.55]
[1754005185001,0.9258,3704.9,3703.8,4.428]
[1754005185182,0.1352,3704.8,3704.3,0.1352]
[1754005185386,0.4341,3704.7,3704.4,4.428]
[1754005185570,0.1352,3704.8,3704.4,4.428]
[1754005185766,0.9258,3704.6,3704.4,4.428]
[1754005185965,0.9258,3704.5,3704.4,4.428]
[1754005186373,0.9,3704.5,3703.1,0.02]
[1754005186582,3.57,3705.9,3703.2,4.427]
[1754005186583,1.0352,3704.4,3703.2,4.427]
[1754005186862,0.1352,3703.8,3703.3,0.1352]
[1754005187305,0.9,3703.7,3703.4,4.427]
[1754005187464,0.1352,3703.8,3703.3,0.1352]
[1754005187772,0.9,3703.6,3703.1,0.02]
[1754005187960,0.9,3703.5,3703.2,4.427]
[1754005188160,0.9,3703.4,3703.2,4.427]
[1754005188466,0.9,3703.3,3703.2,4.427]
[1754005188681,0.9,3703.3,3703.1,4.447]
[1754005188996,0.9,3703.2,3703.1,0.02]
[1754005189364,0.9,3703.2,3703.1,4.447]
[1754005189563,0.9,3703.2,3703.1,0.02]
[1754005193267,0.4694,3703.5,3703.1,0.02]
[1754005193473,0.93375276,3703.4,3703.1,0.02]
[1754005193672,0.1352,3703.2,3703.1,0.02]
[1754005193929,0.16895459,3703.2,3703.1,0.02]
[1754005194074,1.23677985,3703.2,3702.1,0.02]
[1754005194274,0.1352,3702.2,3702.1,0.02]
[1754005194692,1.0352,3702.2,3702.1,0.02]
[1754005197453,0.1352,3702.2,3702.1,0.02]
[1754005197818,0.1352,3702.3,3702.1,0.02]
[1754005197980,0.9337637,3702.2,3702.1,0.02]
[1754005199979,0.9,3702.2,3702.1,0.02]
[1754005201328,0.1352,3702.3,3702.1,0.02]
[1754005201635,0.4306,3703.1,3702.2,8.79943597]
[1754005201926,0.4694,3703.3,3702.3,0.60323282]
[1754005202228,0.1352,3702.6,3702.1,0.02]
[1754005203224,1.0352,3702.6,3702.1,0.02]
[1754005204218,0.4694,3702.5,3702.1,0.02]
[1754005204524,0.03376188,3702.4,3702.1,0.02]
[1754005204690,0.1352,3702.2,3702.1,0.02]
[1754005204887,1.0352,3702.2,3702.1,0.02]
[1754005205595,3.0,3702.1,3701.1,0.02]
[1754005205932,0.1352,3701.2,3701.1,0.02]
[1754005206426,1.0352,3701.2,3701.1,0.02]
[1754005207630,0.1352,3701.2,3701.1,0.02]
[1754005208027,0.1352,3701.5,3701.1,0.02]
[1754005208403,0.6046,3701.5,3701.1,0.02]
[1754005208750,0.1352,3701.5,3701.1,0.02]
[1754005209201,0.4306,3702.2,3701.1,0.02]
[1754005209202,0.4306,3702.2,3701.2,0.4545]
[1754005209402,0.1352,3701.9,3701.3,0.1352]
[1754005209747,0.1352,3701.6,3701.1,0.1552]
[1754005210043,0.4694,3701.5,3701.1,0.1552]
[1754005210552,0.9,3701.5,3701.1,0.02]
[1754005211004,0.4694,3701.5,3701.1,0.02]
[1754005211205,0.9,3702.6,3701.2,1.31875653]
[1754005211408,0.9,3703.0,3701.6,0.55]
[1754005211624,0.1352,3702.8,3702.1,0.1352]
[1754005212174,0.1352,3702.6,3702.1,0.1352]
[1754005212468,0.9,3702.5,3701.3,0.3007]
[1754005212644,0.1352,3702.4,3701.8,0.1352]
[1754005214743,0.1352,3702.4,3701.8,0.14874267]
[1754005214953,0.1352,3702.4,3701.8,0.5897]
[1754005215554,0.1352,3702.4,3701.8,0.1352]
[1754005215926,0.93376279,3702.3,3701.1,3.02]
[1754005216151,0.1352,3702.0,3701.4,0.1352]
[1754005216761,0.8998,3701.9,3701.4,0.1352]
[1754005216970,0.1352,3702.0,3701.4,0.1352]
[1754005216971,0.8998,3701.8,3701.4,0.1352]
[1754005217180,0.1352,3701.7,3701.2,0.1352]
[1754005217470,0.4685,3701.6,3701.2,0.1352]
[1754005217766,1.035,3701.5,3701.1,0.02]
[1754005218067,0.933571,3701.4,3701.1,0.02]
[1754005218283,0.1352,3701.2,3701.1,0.02]
[1754005218491,1.035,3701.2,3701.1,0.02]
[1754005219233,0.1352,3701.2,3701.1,0.02]
[1754005219467,1.035,3701.2,3701.1,0.02]
[1754005221786,0.1352,3701.3,3701.1,0.02]
[1754005222139,0.6037,3701.3,3701.1,0.02]
[1754005222369,0.93357283,3701.2,3701.1,0.02]
[1754005223032,0.8998,3701.2,3701.1,0.02]
[1754005227748,1.15010502,3701.2,3701.1,0.02]
[1754005227942,4.15010502,3701.2,3701.1,0.02]
[1754005228149,3.0,3701.0,3700.1,0.02]
[1754005228456,0.1352,3700.2,3700.1,0.4858]
[1754005228657,0.25028078,3702.1,3700.1,1.3365]
[1754005228977,0.1352,3701.0,3700.6,6.49991193]
[1754005229144,0.8998,3702.0,3700.7,1.46526566]
[1754005229349,0.1352,3701.4,3700.7,1.4517]
[1754005229777,0.1352,3701.4,3700.7,0.6852]
[1754005230360,0.4685,3701.3,3700.3,0.4658]
[1754005230592,0.1352,3700.6,3700.1,0.1552]
[1754005231003,0.1352,3700.6,3700.1,0.02]
[1754005231154,0.46507921,3700.5,3700.1,0.02]
[1754005231357,0.1352,3700.2,3700.1,0.02]
[1754005231777,1.035,3700.2,3700.1,0.02]
[1754005232451,0.1352,3700.2,3700.1,0.02]
[1754005232656,0.1352,3700.3,3700.1,0.02]
[1754005233263,0.93358195,3700.2,3700.1,0.02]
[1754005233466,0.8998,3700.2,3700.1,0.02]
[1754005233968,0.93358195,3700.2,3700.1,0.02]
[1754005234165,30.93358195,3700.2,3700.1,0.02]
[1754005234391,33.8998,3700.2,3700.1,0.02]
[1754005234566,3.1352,3700.2,3700.1,0.02]
[1754005234767,3.5665,3700.2,3700.1,0.02]
[1754005234969,34.035,3700.2,3700.1,0.02]
[1754005235174,30.0,3700.0,3699.1,0.02]
[1754005235384,0.1352,3699.2,3699.1,0.02]
[1754005235716,30.1352,3699.2,3699.1,0.02]
[1754005235915,34.035,3699.2,3699.1,0.02]
[1754005236055,3.0,3698.9,3698.1,0.02]
[1754005236259,0.1352,3698.2,3698.1,0.02]
[1754005236799,1.035,3698.2,3698.1,0.0056015]
[1754005237002,34.035,3698.2,3698.1,0.0056015]
[1754005237292,4.035,3698.2,3698.1,0.0056015]
[1754005237494,0.1352,3698.2,3698.1,0.0056015]
[1754005237798,0.8998,3698.2,3698.1,0.0056015]
[1754005237997,34.035,3698.2,3698.1,0.0056015]
[1754005238304,34.035,3698.2,3697.1,0.02]
[1754005238305,30.0,3697.8,3697.1,0.02]
[1754005238594,30.1352,3697.2,3696.1,0.02]
[1754005238807,30.0,3696.8,3696.1,0.02]
[1754005239110,3.0,3696.3,3695.8,0.12846591]
[1754005239275,3.0,3696.0,3695.8,0.12846591]
[1754005239471,33.1352,3695.9,3695.8,0.12846591]
[1754005239818,34.035,3695.9,3695.8,0.12846591]
[1754005240384,3.0,3695.9,3695.8,0.12846591]
[1754005240585,3.0,3696.1,3695.8,0.12846591]
[1754005240767,0.8998,3697.6,3695.8,0.12846591]
[1754005241112,3.0,3697.2,3695.8,0.12846591]
[1754005241310,3.0,3696.7,3695.8,0.12846591]
[1754005241513,3.0,3696.5,3695.8,0.12846591]
[1754005241713,30.8998,3697.6,3695.9,0.4658]
[1754005241881,30.0,3697.5,3696.0,0.55]
[1754005242320,0.4685,3697.4,3696.0,0.55]
[1754005242483,4.436,3697.9,3696.8,0.55]
[1754005242680,4.436,3697.9,3697.0,0.55]
[1754005242877,4.436,3697.9,3696.2,3.0]
[1754005242878,0.03380388,3697.8,3696.4,0.4658]
[1754005243077,3.03380388,3697.8,3696.5,0.55]
[1754005243385,3.0,3697.8,3696.5,0.55]
[1754005243717,3.02,3697.9,3696.5,0.55]
[1754005244494,3.02,3697.9,3696.2,0.3863]
[1754005244793,0.02,3697.9,3696.7,0.55]
[1754005245099,0.02,3697.9,3696.9,0.55]
[1754005245409,0.02,3697.9,3697.3,0.55]
[1754005245611,0.02,3697.9,3697.4,0.01362449]
[1754005245815,0.8998,3697.8,3696.3,0.4658]
[1754005246116,0.02,3697.9,3696.4,7.44984814]
[1754005246328,0.02,3697.9,3696.6,0.55]
[1754005246988,0.02,3697.9,3697.1,0.55]
[1754005247402,0.02,3697.9,3697.3,0.55]
[1754005248020,0.02,3697.9,3697.7,0.55]
[1754005248188,1.00499383,3698.9,3697.2,0.4751]
[1754005248520,3.0,3698.6,3696.9,0.55]
[1754005248817,0.73644262,3698.5,3696.9,0.55]
[1754005249116,0.24754262,3698.4,3697.1,0.55]
[1754005249289,3.0,3698.6,3697.3,0.55]
[1754005249493,0.28133172,3698.5,3695.5,2.846]
[1754005249679,0.24753424,3698.4,3696.8,0.55]
[1754005249883,0.03379931,3698.3,3696.8,0.55]
[1754005250186,0.9512,3698.5,3696.3,6.49991193]
[1754005250187,0.9512,3698.5,3697.0,0.55]
[1754005250389,30.0,3698.2,3696.9,0.4751]
[1754005250594,0.1352,3697.5,3696.5,1.0251]
[1754005250918,0.1352,3697.5,3696.4,0.55]
[1754005251092,0.1352,3697.5,3696.4,1.0251]
[1754005251292,0.1352,3697.5,3696.9,0.1352]
[1754005251715,0.1352,3697.5,3696.3,4.415]
[1754005251716,0.4889,3697.4,3696.2,0.3863]
[1754005251917,0.1352,3696.9,3696.4,0.1352]
[1754005252080,0.1352,3696.4,3696.1,0.02]
[1754005252790,0.1352,3696.4,3696.1,0.4951]
[1754005252993,0.4889,3697.5,3696.2,0.1352]
[1754005252994,0.1352,3696.7,3696.2,0.1352]
[1754005253382,0.4889,3696.7,3696.1,0.02]
[1754005253618,0.1352,3696.4,3696.1,0.02]
[1754005253816,0.4623,3697.5,3696.2,0.48874863]
[1754005254018,0.1352,3696.9,3696.4,0.1352]
[1754005254320,0.4889,3697.7,3696.4,0.1352]
[1754005254616,0.1352,3697.1,3696.4,0.1352]
[1754005256020,0.03381119,3697.0,3696.4,0.1352]
[1754005256320,0.1352,3696.5,3696.1,0.02]
[1754005256620,0.1352,3696.3,3696.1,0.02]
[1754005258188,0.9512,3696.2,3696.1,0.02]
[1754005258622,0.1352,3696.3,3696.1,0.02]
[1754005258986,1.0864,3696.3,3696.1,0.02]
[1754005259397,0.98501851,3696.2,3696.1,0.02]
[1754005259584,0.9512,3696.2,3695.8,0.12846591]
[1754005259807,0.1352,3695.9,3695.8,0.12846591]
[1754005260194,1.0864,3695.9,3695.8,0.12846591]
[1754005260716,34.0864,3695.9,3695.8,0.12846591]
[1754005260919,4.0864,3695.9,3695.8,0.12846591]
[1754005261296,4.0864,3695.9,3694.8,0.09878151]
[1754005261297,33.0,3695.8,3694.8,0.09878151]
[1754005261497,33.0,3695.8,3694.3,0.00577922]
[1754005261498,6.53582309,3695.7,3694.3,0.00577922]
[1754005261697,6.502,3697.1,3694.4,0.4622]
[1754005261913,6.502,3697.1,3694.8,6.49991193]
[1754005261914,0.4623,3696.7,3694.8,6.49991193]
[1754005262230,30.0,3696.5,3694.3,0.00577922]
[1754005262434,3.0,3696.2,3694.3,0.00577922]
[1754005262636,9.49991193,3695.9,3694.3,0.00577922]
[1754005262835,3.55,3695.5,3694.3,0.00577922]
[1754005263047,3.0,3695.1,3694.3,0.00577922]
[1754005263200,3.0,3694.8,3694.3,0.00577922]
[1754005263398,0.9512,3695.0,3694.3,0.00577922]
[1754005263634,0.9512,3695.0,3694.1,0.02]
[1754005263635,30.0,3694.6,3694.1,0.01187722]
[1754005263836,3.0,3694.3,3694.1,0.01187722]
[1754005264021,33.0,3694.1,3692.1,0.02]
[1754005264228,3.0,3693.8,3692.1,0.02]
[1754005264554,0.0338414,3693.7,3692.6,0.4622]
[1754005264840,30.0,3693.5,3692.1,0.02]
[1754005265081,0.9512,3693.4,3692.1,0.02]
[1754005265225,30.0,3693.3,3692.1,0.02]
[1754005265428,0.4889,3693.7,3692.4,0.4622]
[1754005265616,30.0,3693.5,3692.1,0.02]
[1754005265943,33.0,3693.2,3692.1,0.02]
[1754005266142,3.0,3693.3,3692.1,0.02]
[1754005266299,33.9512,3693.2,3692.1,0.02]
[1754005268361,35.9312,3693.2,3692.1,0.02]
[1754005268633,3.55,3692.9,3692.8,0.06443093]
[1754005268819,34.43,3692.9,3692.8,0.06443093]
[1754005269021,39.8152,3692.9,3692.8,0.06443093]
[1754005269610,38.3852,3692.9,3692.8,0.06443093]
[1754005271542,38.5204,3692.9,3692.8,0.06443093]
[1754005271909,8.5204,3692.9,3692.8,0.06443093]
[1754005272104,38.5204,3692.9,3692.8,0.06443093]
[1754005272347,35.5204,3692.9,3692.8,0.06443093]
[1754005272588,0.1352,3692.9,3692.8,0.06443093]
[1754005272718,6.506,3693.7,3692.8,1.00173093]
[1754005272719,4.431,3693.4,3692.8,1.00173093]
[1754005273046,4.432,3693.8,3692.8,1.00173093]
[1754005273257,30.0,3693.6,3692.8,0.06443093]
[1754005273409,3.0,3693.3,3692.8,0.06443093]
[1754005273604,30.0,3693.2,3692.8,0.06443093]
[1754005273909,4.438,3693.1,3692.8,0.06443093]
[1754005274135,33.0,3692.9,3692.8,0.06443093]
[1754005274664,33.9512,3692.9,3692.8,0.06443093]
[1754005275312,33.0,3692.9,3692.8,0.06443093]
[1754005275744,33.9512,3692.9,3692.8,0.06443093]
[1754005275960,30.0,3692.7,3692.1,0.024]
[1754005276160,3.0,3692.4,3692.1,0.024]
[1754005276369,33.0,3692.2,3692.1,0.024]
[1754005276669,30.0,3693.2,3692.1,0.024]
[1754005276830,3.0,3692.7,3692.2,0.9104]
[1754005277031,4.462,3692.7,3692.3,0.9104]
[1754005277226,4.462,3692.7,3692.4,0.9104]
[1754005277434,30.0,3692.5,3692.1,0.024]
[1754005277733,0.03385332,3692.4,3692.1,0.024]
[1754005278028,30.0,3692.2,3692.1,0.024]
[1754005278269,37.461,3692.2,3692.1,0.024]
[1754005278466,38.4105,3692.2,3692.1,0.024]
[1754005278772,38.4105,3692.2,3692.1,0.010098]
[1754005279136,38.519113,3692.2,3692.1,0.010098]
[1754005280371,38.65849276,3692.2,3692.1,0.010098]
[1754005282874,38.79369276,3692.2,3692.1,0.010098]
[1754005283648,37.84419276,3692.2,3692.1,0.010098]
[1754005283853,38.68507976,3692.2,3692.1,0.010098]
[1754005284059,38.79369476,3692.2,3692.1,0.010098]
[1754005284576,38.33049476,3692.2,3692.1,0.010098]
[1754005284778,37.73557976,3692.2,3692.1,0.010098]
[1754005284979,38.68507976,3692.2,3692.1,0.010098]
[1754005285546,33.76087976,3692.2,3692.1,0.010098]
[1754005285881,0.1352,3692.2,3692.1,0.010098]
[1754005287356,3.1352,3692.2,3692.1,0.920498]
[1754005287543,0.1352,3692.2,3692.1,0.920498]
[1754005287748,0.1352,3692.2,3692.1,0.010098]
[1754005289098,0.1352,3692.2,3692.1,0.920498]
[1754005289562,0.1352,3692.2,3692.1,0.010098]
[1754005290580,3.1352,3692.2,3692.1,0.010098]
[1754005290794,3.16905515,3692.2,3692.1,0.010098]
[1754005293583,3.65535515,3692.2,3692.1,0.010098]
[1754005294106,5.10135515,3692.2,3692.1,0.010098]
[1754005294273,7.61505515,3692.2,3692.1,0.010098]
[1754005294471,8.0675,3692.2,3692.1,0.010098]
[1754005294706,8.0665,3692.2,3692.1,0.010098]
[1754005294912,8.31579776,3692.2,3692.1,0.010098]
[1754005295272,7.82949776,3692.2,3692.1,0.010098]
[1754005295580,8.07883114,3692.2,3692.1,0.010098]
[1754005296312,8.07383114,3692.2,3692.1,0.010098]